Workbook

Sheet Лист1
A1: Школа | C1: МБОУ "Рыбно-Слободская СОШ№2" | F1: Согласовано: | G1: должность | H1: Директор
A2: Типовое примерное меню приготавливаемых блюд | G2: фамилия | H2: Захарова Л.Н.
A3: Возрастная категория | E3: 7-11 лет | G3: дата | H3: 29 | I3: 8 | J3: 2025
H4: день | I4: месяц | J4: год
A5: Неделя | B5: День недели | C5: Прием пищи | D5: Раздел меню | E5: Блюда | F5: Вес блюда, г | G5: Белки | H5: Жиры | I5: Углеводы | J5: Калорийность | K5: № рецептуры | L5: Цена
A6: 1 | B6: 1 | C6: Завтрак | D6: Закуска | E6: Салат из моркови с яблоками | F6: 60 | G6: 0.594 | H6: 1.1 | I6: 6.19 | J6: 37.04
D7: гор.блюдо | E7: Макароны отварные со сливочным маслом | F7: 150 | G7: 5.47 | H7: 6.37 | I7: 34.34 | J7: 216.57
D8: гор.блюдо | E8: Котлета из птицы с соусом | F8: 80/20 | G8: 9.9 | H8: 12.11 | I8: 6.58 | J8: 174.91
D9: хлеб | E9: Хлеб пшеничный | F9: 30 | G9: 2.6 | H9: 0.81 | I9: 14.4 | J9: 74.73
D10: хлеб | E10: Хлеб ржан-пшеничный | F10: 20 | G10: 1.32 | H10: 0.22 | I10: 8.2 | J10: 40.06
D11: гор.напиток | E11: Чай с сахаром | F11: 190/10 | G11: 0.2 | H11: 0.05 | I11: 10 | J11: 41.3
E12: Цена завтрака / Итого за завтрак
D13: итого | F13: =SUM(F6:F12) -> 260 | G13: =SUM(G6:G12) -> 20.084 | H13: 20.66 | I13: 79.71 | J13: 584.606 | L13: 69.43
A14: =A6 -> 1 | B14: =B6 -> 1 | C14: Завтрак 2 | D14: фрукты
D17: итого | F17: =SUM(F14:F16) -> 0 | G17: =SUM(G14:G16) -> 0 | H17: =SUM(H14:H16) -> 0 | I17: =SUM(I14:I16) -> 0 | J17: =SUM(J14:J16) -> 0 | L17: =SUM(L14:L22) -> 0
A18: =A6 -> 1 | B18: =B6 -> 1 | C18: Обед | D18: Закуска | E18: Салат из свежих огурцов | F18: 60 | G18: 0.73 | H18: 4.05 | I18: 1.43 | J18: 45.09
D19: гор.блюдо | E19: Борщ с капустой и картофелем на мкб со сметаной | F19: 225/15/10 | G19: 7 | H19: 8 | I19: 17.9 | J19: 172.6
D20: гарнир | E20: Картофельное пюре | F20: 150 | G20: 3.8 | H20: 6.5 | I20: 34.8 | J20: 212.9
D21: гор.блюдо | E21: Тефтели с соусом | F21: 80/20 | G21: 11 | H21: 8.7 | I21: 29.8 | J21: 241.5
D22: хлеб | E22: Хлеб пшеничный | F22: 20 | G22: 1.64 | H22: 0.54 | I22: 9.6 | J22: 49.82
D23: хлеб | E23: Хлеб ржан-пшеничный | F23: 20 | G23: 1.3 | H23: 0.2 | I23: 8.2 | J23: 40.05
D24: напиток | E24: Компот из свежих плодов | F24: 200 | G24: 0.17 | H24: 0.17 | I24: 19.18 | J24: 76.8
E25: Цена обеда/ Итого за обед | F25: 91 | G25: 25.64 | H25: 28.16 | I25: 120.91 | J25: 838.76
D27: итого | F27: =SUM(F18:F26) -> 541 | G27: 25.64 | H27: 28.16 | I27: 120.91 | J27: 838.76 | L27: 91
A28: =A6 -> 1 | B28: =B6 -> 1 | C28: Полдник | D28: гор.блюдо
D29: хлеб
D30: гор.напиток
D32: итого | F32: =SUM(F28:F31) -> 0 | G32: =SUM(G28:G31) -> 0 | H32: 0 | I32: 0 | J32: =SUM(J28:J31) -> 0 | L32: 33
A33: =A6 -> 1 | B33: =B6 -> 1 | C33: Ужин | D33: гор.блюдо
D34: гарнир
D35: напиток
D36: хлеб
D39: итого | F39: =SUM(F33:F38) -> 0 | G39: =SUM(G33:G38) -> 0 | H39: =SUM(H33:H38) -> 0 | I39: =SUM(I33:I38) -> 0 | J39: =SUM(J33:J38) -> 0 | L39: =SUM(L33:L41) -> 0
A40: =A6 -> 1 | B40: =B6 -> 1 | C40: Ужин 2 | D40: кисломол.
D41: булочное
D42: напиток
D43: фрукты
D46: итого | F46: =SUM(F40:F45) -> 0 | G46: =SUM(G40:G45) -> 0 | H46: =SUM(H40:H45) -> 0 | I46: =SUM(I40:I45) -> 0 | J46: =SUM(J40:J45) -> 0 | L46: =SUM(L40:L48) -> 0
A47: =A6 -> 1 | B47: =B6 -> 1 | C47: Итого за день: | F47: =F13+F17+F27+F32+F39+F46 -> 801 | G47: =G13+G17+G27+G32+G39+G46 -> 45.724 | H47: =H13+H17+H27+H32+H39+H46 -> 48.82 | I47: =I13+I17+I27+I32+I39+I46 -> 200.62 | J47: =J13+J17+J27+J32+J39+J46 -> 1423.366 | L47: =SUM(L13,L27,L32) -> 193.43
A48: 1 | B48: 2 | C48: Завтрак | D48: Закуска | E48: Салат из белокочанной капусты | F48: 60 | G48: 1.16 | H48: 6.05 | I48: 5.8 | J48: 82.29
D49: гор.блюдо | E49: Жаркое по-домашнему (из говядины) | F49: 200 | G49: 14.23 | H49: 13 | I49: 46.9 | J49: 361.52
D50: хлеб | E50: Хлеб пшеничный | F50: 30 | G50: 2.6 | H50: 0.81 | I50: 14.4 | J50: 74.73
D51: хлеб | E51: Хлеб ржан-пшеничный | F51: 20 | G51: 1.32 | H51: 0.22 | I51: 8.2 | J51: 40.06
D52: гор.напиток | E52: Чай с сахаром и лимоном | F52: 185/10/5 | G52: 0.04 | H52: 0.005 | I52: 10.1 | J52: 40.7
D55: итого | F55: =SUM(F48:F54) -> 310 | G55: =SUM(G48:G54) -> 19.35 | H55: 20.085 | I55: 85.4 | J55: 599.3 | L55: 69.43
A56: =A48 -> 1 | B56: =B48 -> 2 | C56: Завтрак 2 | D56: фрукты
D59: итого | F59: =SUM(F56:F58) -> 0 | G59: =SUM(G56:G58) -> 0 | H59: =SUM(H56:H58) -> 0 | I59: =SUM(I56:I58) -> 0 | J59: =SUM(J56:J58) -> 0 | L59: =SUM(L56:L64) -> 0
A60: =A48 -> 1 | B60: =B48 -> 2 | C60: Обед | D60: Закуска | E60: Салат из моркови | F60: 60 | G60: 0.74 | H60: 6.05 | I60: 5.1 | J60: 77.8
D61: гор.блюдо | E61: Суп картофельный с клецками с курицей и сметаной | F61: 225/15/10 | G61: 6.1 | H61: 9.4 | I61: 18.4 | J61: 182.6
D62: гарнир | E62: Рис отварной | F62: 150 | G62: 3.7 | H62: 6.3 | I62: 37.2 | J62: 220.6
D63: гор.блюдо | E63: Рыба, тушенная в томате с овощами | F63: 90/30 | G63: 10.45 | H63: 5.9 | I63: 11 | J63: 138.9
D64: хлеб | E64: Хлеб пшеничный | F64: 40 | G64: 3.28 | H64: 1.08 | I64: 19.2 | J64: 99.64
D65: хлеб | E65: Хлеб ржан-пшеничный | F65: 20 | G65: 1.32 | H65: 0.22 | I65: 8.2 | J65: 40.06
D66: напиток | E66: Компот из сухофруктов | F66: 200 | G66: 0.05 | H66: 0 | I66: 12.6 | J66: 50.6
D69: итого | F69: =SUM(F60:F68) -> 470 | G69: =SUM(G60:G68) -> 25.64 | H69: 28.95 | I69: 111.7 | J69: 810.2 | L69: 91
A70: =A48 -> 1 | B70: =B48 -> 2 | C70: Полдник | D70: гор.блюдо
D71: гор.напиток
D74: итого | F74: =SUM(F70:F73) -> 0 | G74: =SUM(G70:G73) -> 0 | H74: =SUM(H70:H73) -> 0 | I74: =SUM(I70:I73) -> 0 | J74: =SUM(J70:J73) -> 0 | L74: 33
A75: =A48 -> 1 | B75: =B48 -> 2 | C75: Ужин | D75: гор.блюдо
D76: гарнир
D77: напиток
D78: хлеб
D81: итого | F81: =SUM(F75:F80) -> 0 | G81: =SUM(G75:G80) -> 0 | H81: =SUM(H75:H80) -> 0 | I81: =SUM(I75:I80) -> 0 | J81: =SUM(J75:J80) -> 0 | L81: =SUM(L75:L83) -> 0
A82: =A48 -> 1 | B82: =B48 -> 2 | C82: Ужин 2 | D82: кисломол.
D83: булочное
D84: напиток
D85: фрукты
D88: итого | F88: =SUM(F82:F87) -> 0 | G88: =SUM(G82:G87) -> 0 | H88: =SUM(H82:H87) -> 0 | I88: =SUM(I82:I87) -> 0 | J88: =SUM(J82:J87) -> 0 | L88: =SUM(L82:L90) -> 0
A89: =A48 -> 1 | B89: =B48 -> 2 | C89: Итого за день: | F89: =F55+F59+F69+F74+F81+F88 -> 780 | G89: =G55+G59+G69+G74+G81+G88 -> 44.99 | H89: =H55+H59+H69+H74+H81+H88 -> 49.035 | I89: =I55+I59+I69+I74+I81+I88 -> 197.1 | J89: =J55+J59+J69+J74+J81+J88 -> 1409.5 | L89: =SUM(L55,L69,L74) -> 193.43
A90: 1 | B90: 3 | C90: Завтрак | D90: Закуска | E90: Винегрет овощной | F90: 60 | G90: 0.86 | H90: 6.1 | I90: 5.84 | J90: 81.8
D91: гор.блюдо | E91: Каша гречневая рассыпчатая | F91: 150 | G91: 6.9 | H91: 7.6 | I91: 33.6 | J91: 230.3
D92: гор.блюдо | E92: Птица, тушенная в сметанном соусе | F92: 50/50 | G92: 7.1 | H92: 5.6 | I92: 3.17 | J92: 91.48
D93: хлеб | E93: Хлеб пшеничный | F93: 40 | G93: 3.28 | H93: 1.08 | I93: 19.2 | J93: 99.64
D94: хлеб | E94: Хлеб ржан-пшеничный | F94: 20 | G94: 1.32 | H94: 0.22 | I94: 8.2 | J94: 40.06
D95: гор.напиток | E95: Чай с сахаром и яблоками | F95: 180/10/10 | G95: 0.24 | H95: 0.09 | I95: 11 | J95: 45.77
D97: итого | F97: =SUM(F90:F96) -> 270 | G97: =SUM(G90:G96) -> 19.7 | H97: =SUM(H90:H96) -> 20.69 | I97: =SUM(I90:I96) -> 81.01 | J97: =SUM(J90:J96) -> 589.05 | L97: 69.43
A98: =A90 -> 1 | B98: =B90 -> 3 | C98: Завтрак 2 | D98: фрукты
D101: итого | F101: =SUM(F98:F100) -> 0 | G101: =SUM(G98:G100) -> 0 | H101: =SUM(H98:H100) -> 0 | I101: =SUM(I98:I100) -> 0 | J101: =SUM(J98:J100) -> 0 | L101: =SUM(L98:L106) -> 0
A102: =A90 -> 1 | B102: =B90 -> 3 | C102: Обед | D102: Закуска | E102: Салат "Витаминный" | F102: 60 | G102: 1.16 | H102: 6.05 | I102: 5.8 | J102: 82.29
D103: гор.блюдо | E103: Рассольник Ленинградский на мкб со сметаной | F103: 225/15/10 | G103: 7 | H103: 8.2 | I103: 17.3 | J103: 171.3
D104: гор.блюдо | E104: Плов из говядины | F104: 200 | G104: 14.6 | H104: 13.5 | I104: 40.2 | J104: 340.7
D105: хлеб | E105: Хлеб пшеничный | F105: 40 | G105: 3.28 | H105: 1.08 | I105: 19.2 | J105: 99.64
D106: хлеб | E106: Хлеб ржан-пшеничный | F106: 20 | G106: 1.32 | H106: 0.22 | I106: 8.2 | J106: 40.06
D107: гор.напиток | E107: Кисель | F107: 200 | G107: 0 | H107: 0 | I107: 20.9 | J107: 83.9
D111: итого | F111: =SUM(F102:F110) -> 520 | G111: =SUM(G102:G110) -> 27.36 | H111: =SUM(H102:H110) -> 29.05 | I111: =SUM(I102:I110) -> 111.6 | J111: =SUM(J102:J110) -> 817.89 | L111: 91
A112: =A90 -> 1 | B112: =B90 -> 3 | C112: Полдник | D112: гор.блюдо
D113: гор.напиток
D116: итого | F116: =SUM(F112:F115) -> 0 | G116: =SUM(G112:G115) -> 0 | H116: =SUM(H112:H115) -> 0 | I116: =SUM(I112:I115) -> 0 | J116: =SUM(J112:J115) -> 0 | L116: 33
A117: =A90 -> 1 | B117: =B90 -> 3 | C117: Ужин | D117: гор.блюдо
D118: гарнир
D119: напиток
D120: хлеб
D123: итого | F123: =SUM(F117:F122) -> 0 | G123: =SUM(G117:G122) -> 0 | H123: =SUM(H117:H122) -> 0 | I123: =SUM(I117:I122) -> 0 | J123: =SUM(J117:J122) -> 0 | L123: =SUM(L117:L125) -> 0
A124: =A90 -> 1 | B124: =B90 -> 3 | C124: Ужин 2 | D124: кисломол.
D125: булочное
D126: напиток
D127: фрукты
D130: итого | F130: =SUM(F124:F129) -> 0 | G130: =SUM(G124:G129) -> 0 | H130: =SUM(H124:H129) -> 0 | I130: =SUM(I124:I129) -> 0 | J130: =SUM(J124:J129) -> 0 | L130: =SUM(L124:L132) -> 0
A131: =A90 -> 1 | B131: =B90 -> 3 | C131: Итого за день: | F131: =F97+F101+F111+F116+F123+F130 -> 790 | G131: =G97+G101+G111+G116+G123+G130 -> 47.06 | H131: =H97+H101+H111+H116+H123+H130 -> 49.74 | I131: =I97+I101+I111+I116+I123+I130 -> 192.61 | J131: =J97+J101+J111+J116+J123+J130 -> 1406.94 | L131: =SUM(L97,L111,L116) -> 193.43
A132: 1 | B132: 4 | C132: Завтрак | D132: Фрукт | E132: Фрукт | F132: 100 | G132: 1.1 | H132: 0.76 | I132: 9.8 | J132: 50.44
D133: гор.блюдо | E133: Каша молочная геркулесовая со сливочным маслом | F133: 200/5/10 | G133: 7.3 | H133: 10.39 | I133: 26.7 | J133: 229.51
D134: гор.блюдо | E134: Перемяч с мясом печеный | F134: 60 | G134: 8.11 | H134: 8.7 | I134: 26.53 | J134: 216.86
D135: хлеб | E135: Хлеб пшеничный | F135: 30 | G135: 2.6 | H135: 0.81 | I135: 14.4 | J135: 74.73
D136: гор.напиток | E136: Чай с сахаром | F136: 190/10 | G136: 0.2 | H136: 0.05 | I136: 10 | J136: 41.3
D139: итого | F139: =SUM(F132:F138) -> 190 | G139: =SUM(G132:G138) -> 19.31 | H139: =SUM(H132:H138) -> 20.71 | I139: =SUM(I132:I138) -> 87.43 | J139: =SUM(J132:J138) -> 612.84 | L139: 69.43
A140: =A132 -> 1 | B140: =B132 -> 4 | C140: Завтрак 2 | D140: фрукты
D143: итого | F143: =SUM(F140:F142) -> 0 | G143: =SUM(G140:G142) -> 0 | H143: =SUM(H140:H142) -> 0 | I143: =SUM(I140:I142) -> 0 | J143: =SUM(J140:J142) -> 0 | L143: =SUM(L140:L148) -> 0
A144: =A132 -> 1 | B144: =B132 -> 4 | C144: Обед | D144: Закуска | E144: Салат картофельный с солеными огурцами | F144: 60 | G144: 1.1 | H144: 5.7 | I144: 5.13 | J144: 76.22
D145: гор.блюдо | E145: Суп картофельный с бобовыми (гороховый) на мкб с гренками из пшеничного хлеба | F145: 235/15 | G145: 6.99 | H145: 3.4 | I145: 24.48 | J145: 156.48
D146: гарнир | E146: Макароны отварные со сливочным маслом | F146: 150 | G146: 5.47 | H146: 6.37 | I146: 34.34 | J146: 216.57
D147: гор.блюдо | E147: Котлета из птицы с соусом | F147: 80/20 | G147: 9.9 | H147: 12.11 | I147: 6.58 | J147: 174.91
D148: хлеб | E148: Хлеб пшеничный | F148: 30 | G148: 2.6 | H148: 0.81 | I148: 14.4 | J148: 74.73
D149: хлеб | E149: Хлеб ржан-пшеничный | F149: 20 | G149: 1.32 | H149: 0.22 | I149: 8.2 | J149: 40.06
D150: напиток | E150: Компот из свежих плодов | F150: 200 | G150: 0.17 | H150: 0.17 | I150: 19.18 | J150: 76.8
D153: итого | F153: =SUM(F144:F152) -> 460 | G153: =SUM(G144:G152) -> 27.55 | H153: =SUM(H144:H152) -> 28.78 | I153: =SUM(I144:I152) -> 112.31 | J153: =SUM(J144:J152) -> 815.77 | L153: 91
A154: =A132 -> 1 | B154: =B132 -> 4 | C154: Полдник | D154: гор.блюдо
D155: гор.напиток
D158: итого | F158: =SUM(F154:F157) -> 0 | G158: =SUM(G154:G157) -> 0 | H158: =SUM(H154:H157) -> 0 | I158: =SUM(I154:I157) -> 0 | J158: =SUM(J154:J157) -> 0 | L158: 33
A159: =A132 -> 1 | B159: =B132 -> 4 | C159: Ужин | D159: гор.блюдо
D160: гарнир
D161: напиток
D162: хлеб
D165: итого | F165: =SUM(F159:F164) -> 0 | G165: =SUM(G159:G164) -> 0 | H165: =SUM(H159:H164) -> 0 | I165: =SUM(I159:I164) -> 0 | J165: =SUM(J159:J164) -> 0 | L165: =SUM(L159:L167) -> 0
A166: =A132 -> 1 | B166: =B132 -> 4 | C166: Ужин 2 | D166: кисломол.
D167: булочное
D168: напиток
D169: фрукты
D172: итого | F172: =SUM(F166:F171) -> 0 | G172: =SUM(G166:G171) -> 0 | H172: =SUM(H166:H171) -> 0 | I172: =SUM(I166:I171) -> 0 | J172: =SUM(J166:J171) -> 0 | L172: =SUM(L166:L174) -> 0
A173: =A132 -> 1 | B173: =B132 -> 4 | C173: Итого за день: | F173: =F139+F143+F153+F158+F165+F172 -> 650 | G173: =G139+G143+G153+G158+G165+G172 -> 46.86 | H173: =H139+H143+H153+H158+H165+H172 -> 49.49 | I173: =I139+I143+I153+I158+I165+I172 -> 199.74 | J173: =J139+J143+J153+J158+J165+J172 -> 1428.61 | L173: =SUM(L139,L153,L158) -> 193.43
A174: 1 | B174: 5 | C174: Завтрак | D174: Фрукт | E174: Фрукт | F174: 100 | G174: 1Д | H174: 0.76 | I174: 9.8 | J174: 50.44
D175: гор.блюдо | E175: Рис отварной | F175: 150 | G175: 3.7 | H175: 6.3 | I175: 37.2 | J175: 220.6
D176: гор.блюдо | E176: Котлета из говядины с соусом | F176: 80/20 | G176: 10.1 | H176: 12.6 | I176: 11.8 | J176: 201
D177: хлеб | E177: Хлеб пшеничный | F177: 30 | G177: 2.5 | H177: 0.81 | I177: 9.4 | J177: 54.89
D178: хлеб | E178: Хлеб ржан-пшеничный | F178: 20 | G178: 1.32 | H178: 0.22 | I178: 8.2 | J178: 40.06
D179: гор.напиток | E179: Чай с сахаром и лимоном | F179: 185/10/5 | G179: 0.04 | H179: 0.005 | I179: 10.1 | J179: 40.7
D181: итого | F181: =SUM(F174:F180) -> 300 | G181: =SUM(G174:G180) -> 17.66 | H181: =SUM(H174:H180) -> 20.695 | I181: =SUM(I174:I180) -> 86.5 | J181: =SUM(J174:J180) -> 607.69 | L181: 69.43
A182: =A174 -> 1 | B182: =B174 -> 5 | C182: Завтрак 2 | D182: фрукты
D185: итого | F185: =SUM(F182:F184) -> 0 | G185: =SUM(G182:G184) -> 0 | H185: =SUM(H182:H184) -> 0 | I185: =SUM(I182:I184) -> 0 | J185: =SUM(J182:J184) -> 0 | L185: =SUM(L182:L190) -> 0
A186: =A174 -> 1 | B186: =B174 -> 5 | C186: Обед | D186: Закуска | E186: Салат из отварной свеклы | F186: 60 | G186: 0.63 | H186: 6.05 | I186: 5.27 | J186: 78.05
D187: гор.блюдо | E187: Суп с макаронными изделиями с курицей со сметаной | F187: 225/15/10 | G187: 7.1 | H187: 6.33 | I187: 22.6 | J187: 175.77
D188: гарнир | E188: Рагу овощное с говядиной | F188: 210 | G188: 15.9 | H188: 12.8 | I188: 51.4 | J188: 384.4
D189: хлеб | E189: Хлеб пшеничный | F189: 40 | G189: 3.28 | H189: 1.08 | I189: 19.2 | J189: 99.64
D190: хлеб | E190: Хлеб ржан-пшеничный | F190: 20 | G190: 1.32 | H190: 0.22 | I190: 8.2 | J190: 40.06
D191: напиток | E191: Компот из сухофруктов | F191: 200 | G191: 0.05 | H191: 0 | I191: 12.6 | J191: 50.6
D195: итого | F195: =SUM(F186:F194) -> 530 | G195: =SUM(G186:G194) -> 28.28 | H195: =SUM(H186:H194) -> 26.48 | I195: =SUM(I186:I194) -> 119.27 | J195: =SUM(J186:J194) -> 828.52 | L195: 91
A196: =A174 -> 1 | B196: =B174 -> 5 | C196: Полдник | D196: гор.блюдо
D197: Хлеб
D198: гор.напиток
D200: итого | F200: =SUM(F196:F199) -> 0 | G200: =SUM(G196:G199) -> 0 | H200: =SUM(H196:H199) -> 0 | I200: =SUM(I196:I199) -> 0 | J200: =SUM(J196:J199) -> 0 | L200: 33
A201: =A174 -> 1 | B201: =B174 -> 5 | C201: Ужин | D201: гор.блюдо
D202: гарнир
D203: напиток
D204: хлеб
D207: итого | F207: =SUM(F201:F206) -> 0 | G207: =SUM(G201:G206) -> 0 | H207: =SUM(H201:H206) -> 0 | I207: =SUM(I201:I206) -> 0 | J207: =SUM(J201:J206) -> 0 | L207: =SUM(L201:L209) -> 0
A208: =A174 -> 1 | B208: =B174 -> 5 | C208: Ужин 2 | D208: кисломол.
D209: булочное
D210: напиток
D211: фрукты
D214: итого | F214: =SUM(F208:F213) -> 0 | G214: =SUM(G208:G213) -> 0 | H214: =SUM(H208:H213) -> 0 | I214: =SUM(I208:I213) -> 0 | J214: =SUM(J208:J213) -> 0 | L214: =SUM(L208:L216) -> 0
A215: =A174 -> 1 | B215: =B174 -> 5 | C215: Итого за день: | F215: =F181+F185+F195+F200+F207+F214 -> 830 | G215: =G181+G185+G195+G200+G207+G214 -> 45.94 | H215: =H181+H185+H195+H200+H207+H214 -> 47.175 | I215: =I181+I185+I195+I200+I207+I214 -> 205.77 | J215: =J181+J185+J195+J200+J207+J214 -> 1436.21 | L215: =SUM(L181,L195,L200) -> 193.43
A216: 1 | B216: 6 | C216: Завтрак | D216: Кондитерское изделие | E216: Кондитерское изделие | F216: 40 | G216: 1.4 | H216: 6.04 | I216: 13.3 | J216: 113.16
D217: гор.блюдо | E217: Картофельное пюре | F217: 150 | G217: 3.8 | H217: 6.5 | I217: 34.8 | J217: 212.9
D218: гарнир | E218: Рыба, запеченная в сметанном соусе | F218: 90/30 | G218: 11.8 | H218: 7.03 | I218: 10.9 | J218: 154.07
D219: хлеб | E219: Хлеб пшеничный | F219: 20 | G219: 1.64 | H219: 0.54 | I219: 9.6 | J219: 49.82
D220: хлеб | E220: Хлеб ржан-пшеничный | F220: 20 | G220: 1.32 | H220: 0.22 | I220: 8.2 | J220: 40.06
D221: гор.напиток | E221: Чай с сахаром и яблоками | F221: 180/10/10 | G221: 0.24 | H221: 0.09 | I221: 11 | J221: 45.77
D223: итого | F223: =SUM(F216:F222) -> 230 | G223: =SUM(G216:G222) -> 20.2 | H223: =SUM(H216:H222) -> 20.42 | I223: =SUM(I216:I222) -> 87.8 | J223: =SUM(J216:J222) -> 615.78 | L223: 69.43
A224: =A216 -> 1 | B224: =B216 -> 6 | C224: Завтрак 2 | D224: фрукты
D227: итого | F227: =SUM(F224:F226) -> 0 | G227: =SUM(G224:G226) -> 0 | H227: =SUM(H224:H226) -> 0 | I227: =SUM(I224:I226) -> 0 | J227: =SUM(J224:J226) -> 0 | L227: =SUM(L224:L232) -> 0
A228: =A216 -> 1 | B228: =B216 -> 6 | C228: Обед | D228: Закуска | E228: Огурцы соленые | F228: 60 | G228: 0.32 | H228: 0.04 | I228: 0.68 | J228: 4.36
D229: гор.блюдо | E229: Щи из свежей капусты с картофелем на мкб со сметаной | F229: 225/15/10 | G229: 6.5 | H229: 8 | I229: 9.3 | J229: 135.4
D230: гарнир | E230: Каша пшеничная рассыпчатая | F230: 150 | G230: 6.9 | H230: 5.8 | I230: 37.9 | J230: 232.3
D231: гор.блюдо | E231: Птица, тушеная в соусе с овощами | F231: 80/30 | G231: 10.29 | H231: 13.2 | I231: 20.2 | J231: 240.76
D232: хлеб | E232: Хлеб пшеничный | F232: 30 | G232: 2.6 | H232: 0.81 | I232: 14.4 | J232: 74.73
D233: хлеб | E233: Хлеб ржан-пшеничный | F233: 20 | G233: 1.32 | H233: 0.22 | I233: 8.2 | J233: 40.06
D234: гор.напиток | E234: Кисель | F234: 200 | G234: 0 | H234: 0 | I234: 20.9 | J234: 83.9
D237: итого | F237: =SUM(F228:F236) -> 460 | G237: =SUM(G228:G236) -> 27.93 | H237: =SUM(H228:H236) -> 28.07 | I237: =SUM(I228:I236) -> 111.58 | J237: =SUM(J228:J236) -> 811.51 | L237: 91
A238: =A216 -> 1 | B238: =B216 -> 6 | C238: Полдник | D238: гор.блюдо
D239: гор.напиток
D242: итого | F242: =SUM(F238:F241) -> 0 | G242: =SUM(G238:G241) -> 0 | H242: =SUM(H238:H241) -> 0 | I242: =SUM(I238:I241) -> 0 | J242: =SUM(J238:J241) -> 0 | L242: 33
A243: =A216 -> 1 | B243: =B216 -> 6 | C243: Ужин | D243: гор.блюдо
D244: гарнир
D245: напиток
D246: хлеб
D249: итого | F249: =SUM(F243:F248) -> 0 | G249: =SUM(G243:G248) -> 0 | H249: =SUM(H243:H248) -> 0 | I249: =SUM(I243:I248) -> 0 | J249: =SUM(J243:J248) -> 0 | L249: =SUM(L243:L251) -> 0
A250: =A216 -> 1 | B250: =B216 -> 6 | C250: Ужин 2 | D250: кисломол.
D251: булочное
D252: напиток
D253: фрукты
D256: итого | F256: =SUM(F250:F255) -> 0 | G256: =SUM(G250:G255) -> 0 | H256: =SUM(H250:H255) -> 0 | I256: =SUM(I250:I255) -> 0 | J256: =SUM(J250:J255) -> 0 | L256: =SUM(L250:L258) -> 0
A257: =A216 -> 1 | B257: =B216 -> 6 | C257: Итого за день: | F257: =F223+F227+F237+F242+F249+F256 -> 690 | G257: =G223+G227+G237+G242+G249+G256 -> 48.13 | H257: =H223+H227+H237+H242+H249+H256 -> 48.49 | I257: =I223+I227+I237+I242+I249+I256 -> 199.38 | J257: =J223+J227+J237+J242+J249+J256 -> 1427.29 | L257: =SUM(L223,L237,L242) -> 193.43
A258: 1 | B258: 7 | C258: Завтрак | D258: гор.блюдо
D260: гор.напиток
D261: хлеб
D262: фрукты
D265: итого | F265: =SUM(F258:F264) -> 0 | G265: =SUM(G258:G264) -> 0 | H265: =SUM(H258:H264) -> 0 | I265: =SUM(I258:I264) -> 0 | J265: =SUM(J258:J264) -> 0 | L265: =SUM(L258:L264) -> 0
A266: =A258 -> 1 | B266: =B258 -> 7 | C266: Завтрак 2 | D266: фрукты
D269: итого | F269: =SUM(F266:F268) -> 0 | G269: =SUM(G266:G268) -> 0 | H269: =SUM(H266:H268) -> 0 | I269: =SUM(I266:I268) -> 0 | J269: =SUM(J266:J268) -> 0 | L269: =SUM(L266:L274) -> 0
A270: =A258 -> 1 | B270: =B258 -> 7 | C270: Обед | D270: закуска
D271: 1 блюдо
... 236 more rows
